Cogmind - Beta 12 @@@ ROGUE MODE // 2023.04.05 @ 14:56:51 Player: wchar_t Result: Destroyed by G-67 Veteran with Field Laser Performance ------------- Evolutions (3) 1500 Regions Visited (11) 2200 Robots Destroyed (109) 545 Value Destroyed (4532) 4532 Prototype IDs (239) 4780 Alien Tech Used (0) 0 Bonus (4117) 4117 TOTAL SCORE: 17674 Bonus ------- High Alert Combat Kills 247 Follower Combat Kills 70 Entered Garrisons 200 Aligned with FarCom 300 Met Data Miner 300 Used Data Conduit 3000 Cogmind --------- Core Integrity 0/700 Matter 11/300 Energy 18/100 System Corruption 19% Temperature Cool (0) Movement Core (50) Location -6/Proximity Caves Parts ------- > --- POWER (1) -------- (None) > --- PROPULSION (4) --- Enhanced Flexi-carbon Leg Enhanced Flexi-carbon Leg > --- UTILITY (6) ------ Advanced Heat Sink Enhanced Optical Array Improved Sensor Array > --- WEAPON (2) ------- (None) > --- INVENTORY (5) ---- Encrypted Comm Array EM Pulse Cannon Improved EM Pulse Cannon Heavy Rocket Launcher Heavy Missile Launcher Peak State ------------ > --- POWER ------------ (None) > --- PROPULSION ------- Enhanced Flexi-carbon Leg Enhanced Flexi-carbon Leg Armored Huge Wheel > --- UTILITY ---------- Advanced Heat Sink High-capacity Storage Unit Improved Sensor Array Target Analyzer Advanced Particle Charger Layered Light Armor Plating > --- WEAPON ----------- Gauss Cannon Powered Hammer > --- INVENTORY -------- Carbon-fiber Leg VSS Leg Improved Carbon-fiber Leg Improved Carbon-fiber Leg Encrypted Comm Array Layered Light Armor Plating Layered Light Armor Plating Layered Medium Armor Plating Hardlight Generator Long-range Tractor Beam EM Pulse Cannon EM Pulse Cannon Improved EM Pulse Cannon Guided Plasma Cannon Heavy Rocket Launcher Heavy Missile Launcher [Rating: 59] Favorites ----------- Power Deuterium Engine Engine Deuterium Engine Power Core Micro Nuclear Core Propulsion Aluminum Leg Leg Aluminum Leg Wheel Armored Huge Wheel Utility System Shield Device Hardlight Generator Storage Large Storage Unit Processor Targeting Computer Hackware System Shield Protection Layered Light Armor Plating Weapon Assault Rifle Energy Gun Gatling Laser Energy Cannon Heavy Ion Cannon Ballistic Gun Assault Rifle Ballistic Cannon Assault Cannon Launcher Advanced EMP Blaster Impact Weapon Powered Hammer Build | -11 -10 -10 -10 -9 -8 -8 -7 -7 -7 -7 -6 ------- Run | Jun Mat Min Exi Min Mat Gar Fac Low Low Dat Pro Slots Evolved 6 | . . . . . 4 . 2 . . . . Power . | . . . . . . . . . . . . Propulsion 2 | . . . . . 2 . . . . . . Utility 4 | . . . . . 2 . 2 . . . . Weapon . | . . . . . . . . . . . . Parts Attached 149 | 7 6 2 . . 24 23 46 8 2 24 7 Power 9 | 1 . 1 . . 2 2 2 1 . . . Engine 5 | 1 . 1 . . 1 1 . 1 . . . Core 4 | . . . . . 1 1 2 . . . . Reactor . | . . . . . . . . . . . . Propulsion 24 | 2 . . . . 8 7 4 . . 3 . Treads . | . . . . . . . . . . . . Leg 20 | 2 . . . . 8 7 1 . . 2 . Wheel 4 | . . . . . . . 3 . . 1 . Hover . | . . . . . . . . . . . . Flight . | . . . . . . . . . . . . Utility 45 | 1 3 1 . . 5 1 21 1 1 7 4 Device 18 | . . . . . 1 . 10 1 . 6 . Storage 4 | 1 2 . . . . . 1 . . . . Processor 6 | . . . . . 1 . 3 . 1 . 1 Hackware 3 | . . . . . 1 . 2 . . . . Protection 14 | . 1 1 . . 2 1 5 . . 1 3 Artifact . | . . . . . . . . . . . . Weapon 71 | 3 3 . . . 9 13 19 6 1 14 3 Energy Gun 4 | 2 . . . . . . 2 . . . . Energy Cannon 14 | . . . . . 2 4 3 . . 5 . Ballistic Gun 16 | 1 3 . . . 4 4 4 . . . . Ballistic Cannon 17 | . . . . . 1 2 6 2 1 3 2 Launcher 10 | . . . . . 2 3 1 2 . 1 1 Special Weapon . | . . . . . . . . . . . . Impact Weapon 10 | . . . . . . . 3 2 . 5 . Slashing Weapon . | . . . . . . . . . . . . Piercing Weapon . | . . . . . . . . . . . . Special Melee Weapon . | . . . . . . . . . . . . Unidentified Prototypes 4 | . . . . . 3 . 1 . . . . Corrupted Parts 3 | . . . . . . 1 . . . 2 . System Corruption 22 | . . . . . . 10 . . . 12 . Parts Lost 45 | . 3 . . . 10 13 7 1 . 8 3 Power 7 | . 1 . . . 2 2 . 1 . 1 . Propulsion 14 | . . . . . 4 6 2 . . 1 1 Utility 13 | . 1 . . . 3 1 3 . . 3 2 Weapon 11 | . 1 . . . 1 4 2 . . 3 . Highest Loss Streak 5 | . 3 . . . 5 3 3 1 . 3 2 To Critical Strikes . | . . . . . . . . . . . . Average Slot Usage (%) 82 | . 89 74 100 100 92 89 80 72 72 68 81 Engine 3 | . 10 1 14 14 8 4 . 2 7 5 . Core 2 | . . . . . . . 5 4 . . . Leg 17 | . 28 28 28 28 34 33 7 . . 2 15 Wheel 5 | . . . . . . . 7 15 15 12 7 Device 5 | . . . . . 4 . 8 7 7 10 15 Storage 8 | . 14 14 14 14 9 9 7 7 7 7 6 Processor 6 | . . . . . 6 9 8 3 3 7 6 Hackware 5 | . . . . . 5 9 10 . . . . Protection 8 | . 7 1 14 14 6 8 7 15 15 11 12 Energy Cannon 3 | . . . . . 2 6 4 7 7 2 . Ballistic Gun 8 | . 27 28 28 28 13 4 3 . . . . Ballistic Cannon 3 | . . . . . 1 4 3 6 7 3 6 Naked Turns . | . . . . . . . . . . . . Heaviest Build 87 | 14 32 36 36 36 47 48 86 87 85 85 64 Greatest Support 58 | 20 20 20 20 20 40 48 58 56 56 56 28 Greatest Overweight (x) 2 | . 1 1 1 1 2 1 2 1 1 2 2 Average Overweight (x) . | . . 1 1 1 . . 1 1 1 1 1 Largest Inventory Capacity 20 | 8 15 15 15 15 15 15 20 20 20 20 20 Average Capacity 17 | 6 12 15 15 15 15 15 18 20 20 20 19 Most Carried 20 | 4 15 15 15 15 15 15 20 20 19 20 16 Average Carried 15 | 1 9 14 14 15 14 14 17 19 19 16 14 Final Capacity 20 | 8 15 15 15 15 15 15 20 20 20 20 5 Final Carried 20 | 4 14 15 15 15 14 14 20 19 19 16 5 Class Distribution -------------------- 52% | Mutant 31% | Scavenger-Mutant 15% | Hacker-Mutant Dominant Class ---------------- Mutant | -10/Materials Mutant | -10/Mines Mutant | -10/Exiles Mutant | -9/Mines Scavenger-Mutant | -8/Materials Scavenger-Mutant | -8/Garrison Hacker-Mutant | -7/Factory Mutant | -7/Lower Caves Mutant | -7/Lower Caves Mutant | -7/Data Miner Scavenger-Mutant | -6/Proximity Caves Resources | -11 -10 -10 -10 -9 -8 -8 -7 -7 -7 -7 -6 ----------- Run | Jun Mat Min Exi Min Mat Gar Fac Low Low Dat Pro Matter Collected 3480 | 217 292 36 . . 688 559 1009 142 146 309 82 Remotely . | . . . . . . . . . . . . Salvage Created 4522 | . 376 31 . . 1327 935 1265 101 85 253 149 Parts 204 | . 21 . . . 57 39 61 6 7 4 9 Haulers Intercepted 6 | . 1 . . . 1 . 4 . . . . Recyclers Shooed 9 | . 3 . . . 3 . 3 . . . . Parts Field Recycled . | . . . . . . . . . . . . Retrieved Matter . | . . . . . . . . . . . . Parts Self-Destructed 18 | . . . . . . . . 6 8 . 4 Prevented . | . . . . . . . . . . . . Kills | -11 -10 -10 -10 -9 -8 -8 -7 -7 -7 -7 -6 ------- Run | Jun Mat Min Exi Min Mat Gar Fac Low Low Dat Pro Combat Hostiles Destroyed 86 | . 6 2 . . 21 19 21 2 4 4 7 Guns 28 | . 6 2 . . 10 5 5 . . . . Cannons 34 | . . . . . 7 6 13 2 1 2 3 AOE 19 | . . . . . 4 5 3 . 3 . 4 Classes Destroyed 15 | . 3 1 . . 7 . 3 . . . 1 Worker 3 | . . . . . . . 3 . . . . Builder 3 | . . . . . 2 . 1 . . . . Tunneler 1 | . 1 . . . . . . . . . . Hauler 6 | . 1 . . . 1 . 4 . . . . Recycler 8 | . . . . . 4 . 4 . . . . Mechanic 1 | . . . . . . . 1 . . . . Drone 1 | . . . . . . . . . . . 1 Watcher 3 | . . . . . 2 . 1 . . . . Swarmer 16 | . . . . . 4 3 4 . 3 . 2 Grunt 32 | . 6 . . . 12 8 4 . . . 2 Duelist 8 | . . . . . 1 5 1 . . . 1 Sentry 10 | . . . . . 3 1 4 1 . . 1 Hunter 5 | . . . . . 1 2 2 . . . . Programmer 8 | . . . . . . . 6 1 1 . . Enhanced Grunt 4 | . . . . . . . . . . 4 . Assembled 2 | . . 2 . . . . . . . . . Best Kill Streak 10 | . 2 1 . . 10 6 4 2 3 1 3 Combat Bots Only 6 | . 2 1 . . 5 6 3 2 3 1 3 Max Kills in Single Turn 4 | . 1 1 . . 2 1 4 1 3 1 2 Gunslinging . | . . . . . . . . . . . . Exploded 3 | . . . . . 2 1 3 . 3 . 2 Melee . | . . . . . . . . . . . . Uniques/NPCs Destroyed . | . . . . . . . . . . . . Combat | -11 -10 -10 -10 -9 -8 -8 -7 -7 -7 -7 -6 -------- Run | Jun Mat Min Exi Min Mat Gar Fac Low Low Dat Pro Damage Taken 7487 | . 468 25 . . 1485 1437 1974 179 40 1515 364 Core 1186 | . 36 . . . 176 258 400 . 3 225 88 Absorbed by Shields 392 | . . . . . 212 . 180 . . . . Redirected to Shielding 24 | . . . . . . 24 . . . . . Regen/Repaired (Parts) 164 | . . . . . . . 164 . . . . Core Remaining (%) 68 | 100 . . . 85 . 21 . . . . . Volleys Fired 371 | . 35 2 . . 85 72 102 16 12 33 14 Largest 2 | . 2 2 . . 2 2 2 2 2 2 1 Hottest 119 | . 40 40 . . 104 104 109 109 109 119 48 Shots Fired 642 | . 69 4 . . 162 121 174 28 15 52 17 Gun 299 | . 69 4 . . 113 54 59 . . . . Cannon 310 | . . . . . 42 50 114 28 14 52 10 Launcher 33 | . . . . . 7 17 1 . 1 . 7 Special . | . . . . . . . . . . . . Kinetic 432 | . 69 4 . . 131 74 101 10 2 31 10 Thermal 175 | . . . . . 24 28 72 18 12 21 . Explosive 9 | . . . . . . . 1 . 1 . 7 Electromagnetic 26 | . . . . . 7 19 . . . . . Robot Hit Streak 15 | . 8 4 . . 15 11 14 11 13 14 8 Robot Miss Streak 7 | . 3 1 . . 3 3 7 . . 4 2 Penetration Max 1 | . . . . . . . 1 . . . . Secondary Targets 1 | . . . . . 1 . . . . . . Max Gunslinging Chain 1 | . . . . . 1 . . . . . . Shots Hit Robots 408 | . 52 3 . . 106 66 125 7 2 38 9 Core Hits 209 | . 19 3 . . 56 33 65 3 4 15 11 Critical Kills 3 | . . . . . . 2 . . . 1 . Critical Parts Destroyed 3 | . . . . . 1 . 1 . . 1 . Critical Strikes 12 | . . . . . 1 2 2 . . 5 2 Meltdown 2 | . . . . . . 1 . . . 1 . Destroy 2 | . . . . . 1 1 . . . . . Blast 6 | . . . . . . . 1 . . 3 2 Smash 2 | . . . . . . . 1 . . 1 . Melee Attacks 34 | . . . . . . . 12 2 . 19 1 Impact 34 | . . . . . . . 12 2 . 19 1 Slashing . | . . . . . . . . . . . . Piercing . | . . . . . . . . . . . . Sneak Attacks 4 | . . . . . . . 4 . . . . Combat Hostiles . | . . . . . . . . . . . . Follow-up Attacks . | . . . . . . . . . . . . Damage Inflicted 10664 | . 649 39 . . 2479 1872 3587 190 266 959 623 Guns 3093 | . 637 37 . . 1135 459 825 . . . . Cannons 4425 | . . . . . 726 577 1998 190 33 742 159 Explosions 2394 | . . . . . 588 836 292 . 233 . 445 Melee 592 | . . . . . . . 356 . . 217 19 Ramming 160 | . 12 2 . . 30 . 116 . . . . Kinetic 5051 | . 637 37 . . 1449 695 1484 74 . 516 159 Thermal 2544 | . . . . . 456 374 1339 116 33 226 . Explosive 970 | . . . . . . . 292 . 233 . 445 Electromagnetic 1347 | . . . . . 544 803 . . . . . Impact 592 | . . . . . . . 356 . . 217 19 Slashing . | . . . . . . . . . . . . Piercing . | . . . . . . . . . . . . Highest Corruption 19 | . . . . . 1 15 7 7 7 19 19 Average Corruption 6 | . . . . . 1 7 3 7 7 8 19 Corruption Purged 7 | . . . . . . . 7 . . . . Corruption Blocked . | . . . . . . . . . . . . Effects 179 | . . . . . 1 44 49 20 22 18 25 Message Errors 47 | . . . . . . 15 14 3 6 4 5 Matter Fused 47 | . . . . . 1 7 15 10 3 6 5 Heat Flow Errors 16 | . . . . . . 3 6 1 2 1 3 Energy Discharges 21 | . . . . . . 5 7 1 3 1 4 Parts Rejected 4 | . . . . . . 3 1 . . . . Parts Fused 1 | . . . . . . . . . . 1 . Data Loss (minor) 21 | . . . . . . 4 6 2 4 3 2 Data Loss (major) 8 | . . . . . . 2 . . 3 2 1 Misfires 7 | . . . . . . 1 . 2 1 . 3 Alerts 4 | . . . . . . 2 . 1 . . 1 Misdirections 2 | . . . . . . 1 . . . . 1 Weapon Failures 1 | . . . . . . 1 . . . . . Overload Shots . | . . . . . . . . . . . . Overflow Damage 419 | . . . . . 26 31 278 . . 84 . Projectiles 66 | . . . . . 8 12 46 . . . . Explosions 37 | . . . . . 18 19 . . . . . Melee 316 | . . . . . . . 232 . . 84 . Knockbacks 25 | . . . . . 6 4 11 . . 2 2 Impact 4 | . . . . . 1 . 1 . . 2 . Kinetic 20 | . . . . . 5 4 9 . . . 2 Secondary 1 | . . . . . . . 1 . . . . Self-Inflicted Damage 234 | . . . . . 39 141 45 . 9 . . Shots 12 | . . . . . 4 7 . . 1 . . Rammed 8 | . . . . . . . 7 . . 1 . Targets Rammed 18 | . 2 1 . . 5 . 9 . . 1 . Kicked 10 | . 2 1 . . 5 . 2 . . . . Crushed . | . . . . . . . . . . . . Highest Temperature 373 | . 25 . . . 338 255 306 373 244 336 233 Average Temperature 97 | . 7 . . . 107 71 93 127 94 131 101 Received Heat Transfer 1741 | . 285 . . . 602 306 371 30 . . 147 Effects 7 | . . . . . 1 . 2 3 . 1 . Shutdowns 2 | . . . . . 1 . . 1 . . . Energy Bleed 1 | . . . . . . . . 1 . . . Interference 2 | . . . . . . . 2 . . . . Matter Decay 1 | . . . . . . . . . . 1 . Short Circuit 1 | . . . . . . . . 1 . . . Siege Activations . | . . . . . . . . . . . . Robots Corrupted 2 | . . . . . . 2 . . . . . Combat Hostiles 2 | . . . . . . 2 . . . . . Parts Fried 16 | . . . . . 4 5 5 . . 2 . Impact Corruptions 8 | . . . . . . . 6 . . 2 . Robots Melted 2 | . . . . . . 1 . . . 1 . Combat Hostiles 2 | . . . . . . 1 . . . 1 . Parts Melted 7 | . . . . . 1 1 1 . . 4 . Heat Transferred 3946 | . . . . . 716 594 2007 148 37 444 . Parts Sabotaged . | . . . . . . . . . . . . Parts Stolen . | . . . . . . . . . . . . Parts Stripped . | . . . . . . . . . . . . Power Chain Reactions 4 | . . . . . 2 2 . . . . . Missiles Intercepted . | . . . . . . . . . . . . Alert | -11 -10 -10 -10 -9 -8 -8 -7 -7 -7 -7 -6 ------- Run | Jun Mat Min Exi Min Mat Gar Fac Low Low Dat Pro Peak Influence 827 | . 168 19 . . 269 827 552 . . . . Initial 428 | . . 19 . . . 174 428 . . . . Average 210 | . 98 11 . . 105 511 201 . . . . Maximum Alert Level 3 | . . . . . 1 3 2 . . . . Low Security (%) 62 | 100 100 100 . 100 89 15 55 . . . . Level 1 19 | . . . . . 10 19 30 . . . . Level 2 14 | . . . . . . 40 14 . . . . Level 3 4 | . . . . . . 25 . . . . . Level 4 . | . . . . . . . . . . . . Level 5 . | . . . . . . . . . . . . High Security . | . . . . . . . . . . . . Max Security . | . . . . . . . . . . . . Squads Dispatched 18 | . . 1 . . 3 . 14 . . . . Investigation 6 | . . 1 . . 2 . 3 . . . . Extermination 6 | . . . . . . . 6 . . . . Reinforcement 2 | . . . . . 1 . 1 . . . . Assault 3 | . . . . . . . 3 . . . . Garrison 1 | . . . . . . . 1 . . . . Intercept . | . . . . . . . . . . . . Searches Triggered . | . . . . . . . . . . . . Construction Impeded . | . . . . . . . . . . . . Haulers Reinforced . | . . . . . . . . . . . . Active Scanning Responses . | . . . . . . . . . . . . Cargo Convoy Interrupts . | . . . . . . . . . . . . Stealth | -11 -10 -10 -10 -9 -8 -8 -7 -7 -7 -7 -6 --------- Run | Jun Mat Min Exi Min Mat Gar Fac Low Low Dat Pro Distress Signals 7 | . 2 . . . 1 . 2 . . . 2 Communications Jammed . | . . . . . . . . . . . . Distress Signals . | . . . . . . . . . . . . Times Spotted 112 | . 14 2 . . 31 20 29 3 1 4 8 Peak Tracking Total 7 | . 5 1 . . 7 5 3 2 1 1 3 Tactical Retreats 3 | . . . . . . 1 1 1 . . . Traps | -11 -10 -10 -10 -9 -8 -8 -7 -7 -7 -7 -6 ------- Run | Jun Mat Min Exi Min Mat Gar Fac Low Low Dat Pro Traps Triggered 22 | . . . . . 2 9 11 . . . . Indirectly 5 | . . . . . . 5 . . . . . Trap Hack Attempts . | . . . . . . . . . . . . Triggered . | . . . . . . . . . . . . Disarmed . | . . . . . . . . . . . . Reprogrammed . | . . . . . . . . . . . . Reused . | . . . . . . . . . . . . Traps Extracted . | . . . . . . . . . . . . Installed . | . . . . . . . . . . . . Triggered . | . . . . . . . . . . . . Machines | -11 -10 -10 -10 -9 -8 -8 -7 -7 -7 -7 -6 ---------- Run | Jun Mat Min Exi Min Mat Gar Fac Low Low Dat Pro Machines Disabled 6 | . . . . . 2 2 2 . . . . Max in Single Turn 1 | . . . . . 1 1 1 . . . . Garrison Access 1 | . . . . . . . 1 . . . . Garrison Relay 2 | . . . . . . 2 . . . . . Machines Repaired . | . . . . . . . . . . . . Machines Sabotaged . | . . . . . . . . . . . . Overloaded Fab Kills . | . . . . . . . . . . . . Hacking | -11 -10 -10 -10 -9 -8 -8 -7 -7 -7 -7 -6 --------- Run | Jun Mat Min Exi Min Mat Gar Fac Low Low Dat Pro Machines Accessed 25 | . 1 1 2 . 3 2 12 . 1 3 . Terminals 16 | . 1 . . . 2 2 11 . . . . Fabricators . | . . . . . . . . . . . . Repair Stations 1 | . . . . . . . 1 . . . . Recycling Units . | . . . . . . . . . . . . Scanalyzers . | . . . . . . . . . . . . Garrison Access 1 | . . . . . 1 . . . . . . Total Hacks 65 | . 1 1 2 . 8 4 23 . 1 25 . Successful 44 | . 1 1 2 . 4 1 9 . 1 25 . Failed 21 | . . . . . 4 3 14 . . . . Catastrophic 6 | . . . . . . . 6 . . . . Database Lockouts . | . . . . . . . . . . . . Manual 12 | . . . 1 . 5 . 6 . . . . Terminals 32 | . 1 . . . 6 4 21 . . . . Fabricators . | . . . . . . . . . . . . Repair Stations 2 | . . . . . . . 2 . . . . Recycling Units . | . . . . . . . . . . . . Scanalyzers . | . . . . . . . . . . . . Garrison Access 2 | . . . . . 2 . . . . . . Terminal Hacks 39 | . 1 1 2 . 2 1 6 . 1 25 . Record 8 | . . . 1 . . . . . 1 6 . Part Schematic 9 | . . . . . . . . . . 9 . Robot Schematic 7 | . . . . . . . . . . 7 . Prototype ID Bank 3 | . . . . . . . . . . 3 . Open Door 1 | . . 1 . . . . . . . . . Branch Access Points 1 | . . . . . . . 1 . . . . Emergency Access Points 1 | . . . . . . 1 . . . . . Alert Level 1 | . . . . . . . 1 . . . . Unreport Threat 1 | . . . . . . . 1 . . . . Hauler Manifests 2 | . 1 . . . . . 1 . . . . Registered Components 1 | . . . . . . . 1 . . . . Registered Prototypes 1 | . . . . . . . 1 . . . . Zone Layout 2 | . . . . . 2 . . . . . . EX-Prototype ID Bank 1 | . . . 1 . . . . . . . . Fabricator Hacks . | . . . . . . . . . . . . Repair Station Hacks 2 | . . . . . . . 2 . . . . Scan Component 1 | . . . . . . . 1 . . . . Repair 1 | . . . . . . . 1 . . . . Recycling Unit Hacks . | . . . . . . . . . . . . Scanalyzer . | . . . . . . . . . . . . Garrison Access Hacks 1 | . . . . . 1 . . . . . . Unlock Access 1 | . . . . . 1 . . . . . . Unauthorized Hacks 2 | . . . . . 1 . 1 . . . . Terminals 2 | . . . . . 1 . 1 . . . . Botnet 2 | . . . . . 1 . 1 . . . . Fabricators . | . . . . . . . . . . . . Repair Stations . | . . . . . . . . . . . . Recycling Units . | . . . . . . . . . . . . Scanalyzers . | . . . . . . . . . . . . Garrison Access . | . . . . . . . . . . . . Data Cores Recovered . | . . . . . . . . . . . . Used . | . . . . . . . . . . . . Hacking Detections 13 | . . . . . 3 1 9 . . . . Full Trace Events 3 | . . . . . . 1 2 . . . . Feedback Events . | . . . . . . . . . . . . Feedback Blocked . | . . . . . . . . . . . . Robot Schematics Acquired 7 | . . . . . . . . . . 7 . Robots Built . | . . . . . . . . . . . . Authchips . | . . . . . . . . . . . . Time . | . . . . . . . . . . . . Total Robot Build Rating . | . . . . . . . . . . . . Part Schematics Acquired 9 | . . . . . . . . . . 9 . Parts Built . | . . . . . . . . . . . . Authchips . | . . . . . . . . . . . . Time . | . . . . . . . . . . . . Total Part Build Rating . | . . . . . . . . . . . . Parts Repaired 1 | . . . . . . . 1 . . . . Time 22 | . . . . . . . 22 . . . . Parts Recycled . | . . . . . . . . . . . . Recycled Matter . | . . . . . . . . . . . . Retrieved Matter . | . . . . . . . . . . . . Retrieved Components . | . . . . . . . . . . . . Parts Scanalyzed . | . . . . . . . . . . . . Part Schematics Acquired . | . . . . . . . . . . . . Parts Damaged . | . . . . . . . . . . . . Bothacking | -11 -10 -10 -10 -9 -8 -8 -7 -7 -7 -7 -6 ------------ Run | Jun Mat Min Exi Min Mat Gar Fac Low Low Dat Pro Used RIF Installer . | . . . . . . . . . . . . Robots Hacked . | . . . . . . . . . . . . Non-combat . | . . . . . . . . . . . . Combat . | . . . . . . . . . . . . Robot Hacks Applied . | . . . . . . . . . . . . Relay Couplers Released 9 | . . . . . . 7 2 . . . . Machine Destruction 9 | . . . . . . 7 2 . . . . Fabnet Peak Effective % . | . . . . . . . . . . . . Robots Rewired . | . . . . . . . . . . . . Allies Hacked . | . . . . . . . . . . . . Hacks Repelled . | . . . . . . . . . . . . Allies | -11 -10 -10 -10 -9 -8 -8 -7 -7 -7 -7 -6 -------- Run | Jun Mat Min Exi Min Mat Gar Fac Low Low Dat Pro Total Allies 3 | . . 3 . . . . . . . . . Largest Group 3 | . . 3 3 3 3 . . . . . . Highest-Rated Group 40 | . . 40 40 40 40 . . . . . . Highest-Rated Ally 16 | . . 16 16 16 16 . . . . . . Total Orders . | . . . . . . . . . . . . Ally Attacks 29 | . . 4 . . 25 . . . . . . Total Damage 338 | . . 64 . . 274 . . . . . . Kills 4 | . . 1 . . 3 . . . . . . Allies Corrupted . | . . . . . . . . . . . . Allies Melted . | . . . . . . . . . . . . Intel | -11 -10 -10 -10 -9 -8 -8 -7 -7 -7 -7 -6 ------- Run | Jun Mat Min Exi Min Mat Gar Fac Low Low Dat Pro Robot Analysis Total 131 | . . . . . . . . . . 131 . Derelict Logs Recovered 5 | . . 1 . . . . . 2 1 . 1 Drone Launches . | . . . . . . . . . . . . Drone Recoveries . | . . . . . . . . . . . . Exploration | -11 -10 -10 -10 -9 -8 -8 -7 -7 -7 -7 -6 ------------- Run | Jun Mat Min Exi Min Mat Gar Fac Low Low Dat Pro Turns Passed 11569 | 78 486 984 412 97 1520 1603 4041 588 558 657 545 Spaces Moved 5479 | 57 199 354 217 52 544 722 2217 368 295 257 197 Core 10 | 6 . . . . . . . . . . 4 Treads . | . . . . . . . . . . . . Legs 2849 | 51 199 354 217 52 544 722 709 . . 1 . Wheels 2620 | . . . . . . . 1508 368 295 256 193 Hover . | . . . . . . . . . . . . Flight . | . . . . . . . . . . . . Fastest Speed 50 | 50 120 190 190 190 120 120 115 115 115 115 50 Average Speed 144 | 112 167 190 190 190 173 155 133 115 115 119 127 Slowest Speed 260 | 120 190 190 190 190 260 190 260 115 115 190 130 Overloaded Moves . | . . . . . . . . . . . . Propulsion Burnouts . | . . . . . . . . . . . . Robots Hopped . | . . . . . . . . . . . . Cave-ins Triggered . | . . . . . . . . . . . . Exploration Rate (%) 47 | 4 39 77 61 15 44 62 49 58 51 85 22 Regions Visited 11 Branch Regions 7 Pre-discovered Areas 28 | . . . 1 . . . . 1 1 25 . Known Exits Taken 2 | . . . . . 1 . 1 . . . . Unknown Exits Taken 8 | 1 1 1 1 1 . . . 1 1 1 . Scrap Searched 5 | . . 1 . 1 . . . . 1 . 2 Spaces Dug 17 | . . . . . . 2 8 4 1 2 . Terrain Destroyed 150 | . . . . . 11 9 22 9 21 3 75 Melee 11 | . . . . . . . 7 2 . 2 . Projectile 29 | . . . . . 2 . 8 7 6 1 5 AOE 110 | . . . . . 9 9 7 . 15 . 70 Terrain Rammed . | . . . . . . . . . . . . Walls Destroyed . | . . . . . . . . . . . . Machines Disabled . | . . . . . . . . . . . . Actions | -11 -10 -10 -10 -9 -8 -8 -7 -7 -7 -7 -6 --------- Run | Jun Mat Min Exi Min Mat Gar Fac Low Low Dat Pro Total 8403 | 67 282 660 218 51 963 1081 3099 500 498 505 479 Wait 2174 | . 25 300 . . 272 230 647 104 190 161 245 Move 5468 | 56 198 353 216 51 543 721 2216 367 294 256 197 Hop . | . . . . . . . . . . . . Pick Up 71 | 4 10 2 1 . 14 11 23 1 . 5 . Fast Attach 63 | 6 4 1 . . 13 9 20 . 1 8 1 Attach 34 | . 1 1 . . 7 7 8 1 . 7 2 Detach 21 | . 3 . . . 3 1 10 1 . 2 1 Swap 53 | 1 1 . . . 5 7 18 7 1 9 4 Drop 68 | . 3 . 1 . 16 5 24 1 . 4 14 Fire 371 | . 35 2 . . 85 72 102 16 12 33 14 Melee 34 | . . . . . . . 12 2 . 19 1 Ram 8 | . . . . . . . 7 . . 1 . Kick 10 | . 2 1 . . 5 . 2 . . . . Crush . | . . . . . . . . . . . . Escape Stasis 28 | . . . . . . 18 10 . . . . Rewire . | . . . . . . . . . . . . Trap . | . . . . . . . . . . . . Miscellaneous . | . . . . . . . . . . . . Route ------- -11/Junkyard -10/Materials -10/Mines (discovered 3 exits: [*Mat x2] / *Exi) -10/Exiles -9/Mines -8/Materials (discovered 2 exits: *Fac / Gar) -8/Garrison (discovered 2 exits: *Fac x2) -7/Factory (discovered 5 exits: [*Fac] / *Sto x2 / *Low x2) -7/Lower Caves -7/Lower Caves -7/Data Miner -6/Proximity Caves History --------- Turn | Location | Event 7 | -11/Junkyard | Discovered new exit (range 16) 79 | -11/Junkyard | Entered Materials 312 | -10/Materials | Build established: Mutant 337 | -10/Materials | Discovered new exit (range 16) 503 | -10/Materials | Lost 3 parts (1p1u1w) 565 | -10/Materials | Entered Mines 747 | -10/Mines | Assembled infested the area 1206 | -10/Mines | Assisted by bots powering up and referring to "LRC-V3" 1416 | -10/Mines | Met a Derelict shopkeep closing up shop 1488 | -10/Mines | Discovered new exit (range 7) 1510 | -10/Mines | Discovered new exit (range 5) 1535 | -10/Mines | Deemed a non-threat by the Exiles lab entrance 1535 | -10/Mines | Discovered new exit (range 5) 1549 | -10/Mines | Entered Exiles 1549 | -10/Exiles | Accompanied by 3 allies 1597 | -10/Exiles | Met 8R-AWN 1627 | -10/Exiles | Met EX-HEX 1679 | -10/Exiles | Met EX-BIN 1705 | -10/Exiles | Aligned with FarCom system 1707 | -10/Exiles | Given EX-Vault access code 1751 | -10/Exiles | Opened EX-Vault 1765 | -10/Exiles | Found Gui. Plasma Cannon 1809 | -10/Exiles | Warned to stay clear of 0b10 Research branches 1872 | -10/Exiles | Met EX-DEC 1882 | -10/Exiles | Learned location of Zion (-6) 1944 | -10/Exiles | Discovered new exit (range 10) 1961 | -10/Exiles | Left Exiles lab with Gui. Plasma Cannon 1961 | -10/Exiles | Entered Mines 1961 | -9/Mines | Accompanied by 3 allies 1972 | -9/Mines | Met a Derelict bent on vengeance 2036 | -9/Mines | Discovered new exit (range 15) 2058 | -9/Mines | Entered Materials 2058 | -8/Materials | Accompanied by 3 allies 2058 | -8/Materials | Evolved 4 slots: Propulsion x2, Utility x2 2816 | -8/Materials | Build established: Scavenger-Mutant 3428 | -8/Materials | Lost 5 parts (4n1u) 3550 | -8/Materials | Discovered new exit (range 8) 3574 | -8/Materials | Identified exit to Garrison 3578 | -8/Materials | Entered Garrison 3794 | -8/Garrison | Triggered checkpoint 3885 | -8/Garrison | Build established: Mutant 3917 | -8/Garrison | Garrison Relay disabled 4064 | -8/Garrison | Garrison Relay disabled 4223 | -8/Garrison | Triggered checkpoint 4245 | -8/Garrison | Triggered checkpoint 4458 | -8/Garrison | Core integrity fell below 50% 4494 | -8/Garrison | System corruption reached 10% 4503 | -8/Garrison | Lost 3 parts (1p1n1w) 4616 | -8/Garrison | Build established: Scavenger-Mutant 4699 | -8/Garrison | Discovered new exit (range 10) 4866 | -8/Garrison | Spotted B-75 Beast 4866 | -8/Garrison | Spotted B-75 Beast 5051 | -8/Garrison | Lost 3 parts (2n1w) 5162 | -8/Garrison | Triggered checkpoint 5170 | -8/Garrison | Discovered new exit (range 10) 5181 | -8/Garrison | Entered Factory 5181 | -7/Factory | Evolved 2 slots: Utility x2 5182 | -7/Factory | Identified exit to Storage 5891 | -7/Factory | Lost 3 parts (2n1u) 6616 | -7/Factory | Lost 3 parts (2u1w) 6824 | -7/Factory | Discovered new exit (range 7) 6883 | -7/Factory | Build established: Mutant 7373 | -7/Factory | Build established: Hacker-Mutant 7548 | -7/Factory | Repaired Arm. Huge Wheel 8271 | -7/Factory | Discovered exit to Storage (range 10) 8685 | -7/Factory | Core integrity fell below 50% 8836 | -7/Factory | Garrison activated, responded to threat 8866 | -7/Factory | Identified exit to Lower Caves 9005 | -7/Factory | Discovered new exit (range 4) 9177 | -7/Factory | Build established: Mutant 9181 | -7/Factory | First assault squad dispatched 9222 | -7/Factory | Entered Lower Caves 9333 | -7/Lower Caves | Learned 4 Factory zone layouts 9401 | -7/Lower Caves | Attracted the attention of an 0b10 checkpoint 9542 | -7/Lower Caves | Spotted B-75 Beast 9643 | -7/Lower Caves | Met a Warlord Commander 9644 | -7/Lower Caves | Learned location of Warlord (-4) 9652 | -7/Lower Caves | Found Encrypted Comm Array 9705 | -7/Lower Caves | Learned 4 Factory zone layouts 9801 | -7/Lower Caves | Discovered new exit (range 7) 9810 | -7/Lower Caves | Entered another Lower Caves area 10360 | -7/Lower Caves | Discovered new exit (range 5) 10368 | -7/Lower Caves | Entered Data Miner 10369 | -7/Data Miner | Discovered new exit (range 6) 10391 | -7/Data Miner | Met Data Miner 10428 | -7/Data Miner | Learned location of Section 7 (-2) 10428 | -7/Data Miner | Acquired the access code to Warlord's prototype stash 10441 | -7/Data Miner | Received God Mode back door access code from Data Miner 10519 | -7/Data Miner | Interfaced with the Data Conduit 10806 | -7/Data Miner | Found Exp. Thermal Shield 10913 | -7/Data Miner | Core integrity fell below 20% 10928 | -7/Data Miner | System corruption reached 10% 10948 | -7/Data Miner | Lost 3 parts (1p1u1w) 11025 | -7/Data Miner | Entered Proximity Caves 11027 | -6/Proximity Caves | Attracted the attention of an 0b10 checkpoint 11241 | -6/Proximity Caves | Build established: Scavenger-Mutant 11259 | -6/Proximity Caves | Learned Factory stockpile data 11570 | -6/Proximity Caves | Destroyed by G-67 Veteran with Field Laser Last Messages --------------- 11548_ Destroyed Hover Unit. 11548_ N-01 Spotter destroyed. 11552_ The unstable cave ceiling collapses. 11554_ Hover Unit fries itself beyond repair. 11554_ Critical hit (Burn: +37). 11560_ Dropped Lyr. Medium Armor Plating. 11560_ Dropped Lyr. Light Armor Plating. 11561_ Dropped Gauss Cannon. 11562_ Dropped Powered Hammer. 11563_ Dropped Imp. Carbon-fiber Leg. 11564_ Critical hit (Burn: +37). 11564_ Dropped VSS Leg. 11564_ Dropped Carbon-fiber Leg. 11565_ Dropped Gui. Plasma Cannon. 11565_ Dropped Lrn. Tractor Beam. 11566_ Dropped EM Pulse Cannon. 11566_ Dropped Hardlight Generator. 11567_ Dropped Lyr. Light Armor Plating. 11567_ Dropped Hcp. Storage Unit. 11570_ Arm. Huge Wheel destroyed. Map ----- +----------------------------------------------------+ | ?????????????????????????????????????????????????? | | ?????????????????????????????????????????????????? | | ?????????????????????????????????????????????????? | | ?????????????????????????????????????????????????? | | ?????????????????????????????????????????????????? | | ?????????????????????????????????????????????????? | | ?????????????????????????????????????????????????? | | ?????????????????????????????????????????????????? | | ?????????????????????????????????????????????????? | | ?????????????????????????????????????????????????? | | ?????????????????????????????????????????????????? | | ?????????????????????????????????????????????????? | | ?????????????????????????????????????????????????? | | ?????????????????????????????????????????????????? | | ?????????????????????????????????????????????????? | | ?????????????????????????????????????????????????? | | ?????????????????????????????????????????????????? | | ?????????????????????????????????????????????????? | | ??####???????????????????????????????????????????? | | ?## ###?????????###?????????????????????????????? | | ## ##??????## ##????????????#???????????????? | | #????### ???????????? ????????????????? | | # #???## ???????????? #????????????????? | | # #???# ##????####### #????????????????? | | # #???# # ###### #????????????????? | | # ##???# ####!!/= @ #????????????????????? | | #???## # !=]=! ##????????????????????? | | ###### !]=] #?????????????????????? | | = ! ##?????????????????????? | | #?????????????????????? | | ###### g #?????????????????????? | | ### ##????# # #?????????????????????? | | ??## ##??# #### g ##?????????????????????? | | ???###??# #?# g ###??????????????????????? | | #??????# ## =] #???????????????????????? | | #??????#### #???????????????????????? | | #?????????## % ?????????????????????? | | #??????#### ???????????????????? | | #?????## ## %#### ????????????????? | | ???#### #### ##???? #??????????????? | | ??## ##??# ??????? #??????????????? | | ??# #????# ??????? #??????????????? | | ??# #???? ######??????????????????????? | | ### #???? ##???????????????????????????? | | #???####????????????????????????????? | | #???????????????????????????????????? | | #### ##??????????????????????????????????? | | #??##### #??????????????????????????????????? | | #######??# #??????????????????????????????????? | | #### #??????????????????????????????????? | +----------------------------------------------------+ Best States ------------- Heat Dissipation 56 Energy Generation 15 Energy Capacity 275 Matter Stores 300 Matter Capacity 300 Sight Range 22 Robot Scan Range 15 Terrain Scan Density 10 Armor Coverage 825 Core Shielding 20 Evasion (%) 55 Targeting Accuracy 21 Target Analysis 5 Particle Charging 25 Offensive Hacking 20 Defensive Hacking 10 Item Schematics ----------------- Combat Drone Bay | -7/Data Miner | Free Lgt. Regenerative Plating | -7/Data Miner | Free Biomechanical Wings | -7/Data Miner | Free Thermal Defense Suite | -7/Data Miner | Free Cld. Plasma Cannon | -7/Data Miner | Free Linear Gravjet | -7/Data Miner | Free Adv. Drone Bay | -7/Data Miner | Free Hyp. Gauss Cannon | -7/Data Miner | Free Mic. Fission Core | -7/Data Miner | Free Robot Schematics ------------------ M-14 Sweeper | -7/Data Miner | Free G-47 Trooper | -7/Data Miner | Free B-48 Gladiator | -7/Data Miner | Free O-24 Administrator | -7/Data Miner | Free E-15 Imp | -7/Data Miner | Free B-60 Warrior | -7/Data Miner | Free Y-64 Sentinel | -7/Data Miner | Free Fabricated ------------ Nothing Alien Tech Used ----------------- None Achievements -------------- None Challenges ------------ None Game ------ Seed HybridLightpackLoader Manual? 0 Play Time 01:18:23 Cumulative 218.8 hours Start 2023.04.05 @ 11:53:34 End 2023.04.05 @ 14:56:51 Sessions 1 Manual Loads 0 Difficulty Rogue Special Mode None Game No. 94 Rogue 78 Adventurer 8 Explorer 8 Win Type - Total 16 Types 10/0/3/1/1/1/0/0/0 Lore% 85 Gallery% 80 Achievement% 73 Wizard Run 0 Options --------- ASCII 1 Keyboard 0 Movement Vi Keybinds 0 Fullscreen 1 Font 18/CogWide Map View 76x50 Tactical HUD 1 Map Filters NONE Filters NONE Steam 0 RUN: 8fcb9960-c8f2-4df1-9fe1-e3ac448eef44